Workbook

Sheet COVER PAGE
D12: BILL OF QUANTITIES
A15: DATE: | D15: 2023-10-01
A18: PROJECT TITLE: | D18: A14 AND A19 CARRIAGE WATER TIE-IN
A21: SAP PROJECT NUMBER: | D21: P. 03753
A23: CONTRACT NUMBER | D23: RW

Sheet Preamble to the BOQ
B1: Preamble and Pricing Instructions
A2: 1 | B2: Definition of The Scope of Scheduled Items
A3: 1.1 | B3: Preamble and Pricing Instructions
A4: 1.1.1 | B4: The prices and rates to be inserted in Bills of Quantities are to be the fully inclusive prices for the work described under the Price Schedules therein. Such prices and rates shall cover all costs and expenses that may be required in and for the execution of the work described, and shall cover the cost of all general risks, liabilities, and obligations set forth or implied in the documents on which the tender is based, as well as overhead charges and profit. This shall include any documentation or attendance of mandatory safety induction. Reasonable prices shall be inserted, as these will be used as a basis for assessment of payment for additional work that may have to be carried out.
A6: 1.1.2 | B6: A price or rate is to be entered against each item in Bills of Quantities, whether the quantities are stated or not. Items that are required to be inserted in the Provisional Bills of Quantities by the Contractor, and which have not been duly inserted, shall be considered as covered by other rates or prices in the Provisional Bills of Quantities.
A8: 1.1.3 | B8: Except where rates only are required, insert all amounts to be included in the total tendered price in the "Amount" column and show the corresponding total tendered price.
A10: 1.1.4 | B10: The units of measurement described in the Bills of Quantities are in metric units.
A12: 1.1.5 | B12: The Price Schedule is provisional and shall be subject to finalisation of the requirements on site and accurate measurement of actual quantities installed on site by the Contractor. The Contractor shall verify all quantities, dimensions, etc by actual measurement on site before the ordering of material, etc. Rand Water does not accept responsibility for under or over measure as a result of the failure of the Contractor to verify quantities and dimensions before ordering. Jointing of e g cables which have resulted due to erroneous measurements will not be accepted.
A14: 1.1.6 | B14: The quantities in the Provisional Schedules are estimates of the final quantities to enable the Contractor to determine the magnitude and scope of the works. Payment will be made on final measurement of quantities of each item of the work on site.
A16: 1.1.7 | B16: The Contractor in executing the work or in ordering any Contractors equipment or in ordering any plant shall not be guided by or work to any descriptions, dimensions or quantities as set forth in the Provisional Bills of Quantities. He/she shall be guided by and work to the drawings supplied for the works, specifications and by the instructions of the Engineer and measurements taken on site.
A18: 1.1.8 | B18: Where Provisional Sums appear in the Bills of Quantities the contractor shall provide competitive quotations with breakdowns of costs for work required and agreed, and payments will be against these quotations taking into account the contractors mark up. All items described as "Provisional" shall be measured as executed and paid for according to prices in the Bills of Quantities and any unexpended amounts shall be deducted from the amount of the Contract Sum. No work for which "Provisional" items are provided shall be commenced without written instructions from the Engineer.
A20: 1.1.9 | B20: System Specification Clause column is provided to make it easier for the Contractor to quickly locate some of the major clauses pertaining to that equipment/works within the System Specifications document. It is still the responsibility of the Contractor to thoroughly read through the entire System Specification document (including the entire Tender Documents, Drawings, Applicable Standards and Site Information) identify other applicable clauses pertaining to an equipment/works that have not been stated in the System Specification Clause column.
A22: 1.1.10 | B22: These Bills of Quantities shall be used to assist both parties in administering and agreeing any changes/variations, which may arise during the course of the Contract.
A24: 1.1.11 | B24: These Bills of Quantities shall be used to calculate the value of work completed in the evaluation of interim/final payments.
A26: 1.1.12 | B26: The Contractor is deemed to have allowed opposite each item contained in these Bills of Quantities whatever costs and charges it may consider necessary for the carrying out, complying with and due observance of the provisions, conditions and requirements set out in the Contract.
A28: 1.1.13 | B28: No claim whatsoever will be entertained in respect of errors or omissions in pricing due to the brevity of a description of any item contained in these Bills of Quantities which items are fully described or can reasonably inferred when read in conjunction with the relevant clauses provided for in the Conditions of Contract, Specifications, Drawings or other relevant documentation.
A30: 1.1.14 | B30: Any item left un-priced will be deemed to be provided for elsewhere and no claim for any extras arising out of the Contractor’s omission to price any item will be entertained.
A31: 1.1.15 | B31: Whatever rate the tenderer puts in the Bill of Quantities as “rate only” shall be subject to verification by Rand Water quantity surveyors during project implementation.
A33: 1.1.16 | B33: For the purposes of this schedule of quantities, the following words shall have the meaning hereby assigned to them:
B35: · Unit: The unit of measurement for each item of work as defined in the specifications.
B37: · Quantity: The number of units of work for each item.
B39: · Rate: The payment per unit of work for which the tenderer tenders to do the work.
B43: · Amount: An amount tendered for an item, the extent of which is described in the schedule of quantities, the specification or elsewhere, but of which the quantity of work is not measured in units.
A45: 1.1.17 | B45: The Form of Tender, the General and Particular Conditions of Contract, the Specification and Drawings shall be read in conjunction with the price schedule.
A47: 1.1.18 | B47: The price schedules and summary of price schedules shall be priced, extended, totalled and signed by the Tenderer. The total tender price shall be carried to the Form of Tender. The Form of Tender and the Schedules shall be completed and signed.
A49: 1.1.19 | B49: The tender price will be taken to be the price entered in the Form of Tender. In the event of discrepancies between tendered rates and extended amounts in the price schedule, the amounts will be deemed to be correct and the rates will be corrected accordingly. In the event of discrepancies between extended amounts and the total tender price entered in the Form of Tender, the total tender price will be deemed to be correct and adjustments made by agreement to rates and extended amounts.
A51: 1.1.20 | B51: The quantities set out in the Schedule of Quantities are the estimated quantities of the Contract Works, but the Contractor will be required to undertake whatever quantities may be directed by the Engineer from time to time. The Contract Price for the completed contract shall be computed from the actual quantities of work done, valued at the relevant unit rates and prices. The validity of the contract shall in no way be affected by differences between the quantities in the schedule of quantities and the quantities finally certified for payment. Work shall be valued at the rates or lump sums tendered, subject only to the provisions of the general conditions of contract.
A53: 1.1.21 | B53: All rates and sums of money quoted in the schedule of quantities shall be in Rands and whole cents. Fractions of a cent shall be discarded.
A54: 1.1.22 | B54: The Employer shall without prejudice retain the rights to exclude and/or include certain aspects of the Bill of Quantities
A56: 1.1.23 | B56: The items included in Bills of Quantities are a guideline to the contractor. It is the Contractor’s responsibility to thoroughly familiarise himself with all of the works information and specifications for this Contact so as to ascertain the scope and extent of the works and ensure that any items that are required to achieve the functional requirements of this Contract are included in the Bill of Quantities.
A58: 1.1.24 | B58: Where no requirement has been stated in the documentation for Technical Data Sheets, Tenderers shall provide for items as reflected in the “measurement and payment” clauses of the applicable standard specification (e.g. SABS 1200 series specifications).
A60: 1.1.25 | B60: The description of each item shall, unless otherwise stated herein, be held to include making, conveying and delivering, unloading, storing, unpacking, hoisting, setting, fitting and fixing in position, cutting and waste, patterns, models and templates, plant, temporary works, return of packings, establishment charges, profit and all other obligations arising out of the Conditions of Contract.
A62: 1.1.26 | B62: Unless a separate rate for the supply and for the installation of any item is specifically called for, the supply, delivery and installation costs of any item shall be fully included in the unit price.
A64: 1.1.27 | B64: No alteration, erasure or addition is to be made in the typed text of the Bills of Quantities. Should any alteration, erasure or addition be made other than in the areas allowed for this, it will not be recognised but the original wording of the Bill of Quantities will be adhered to.
A66: 1.1.28 | B66: The Tenderer shall not be relieved of responsibility for measuring quantities at the Tender stage, and the Tender Sum submitted shall be in respect of the quantities set out in the Bills of Quantities. The Tenderer shall be required to make his assessment and allowance of sundry equipment such as gaskets, bolts, nuts, brackets, fixing, etc., to form part of his pricing and shall include in the item prices for such small installation materials as are required for complete installation in accordance with the Specification.
A68: 1.1.29 | B68: The following abbreviations are used in the schedule of quantities:
B69: mm = millimetre
B70: m = metre
B71: m² = square metre
B72: m³ = cubic metre
B73: t = tons
B74: No = number
B75: PC Sum = prime cost sum
B76: Prov Sum = provisional sum
A77: 2 | B77: Electrical Preamble
A78: 2.1 | B78: Design and detailing of the installation
B79: Items are provided in the Provisional Bills of Quantities for final design suitable for construction of the Substation Distribution Board and the Mimic Panel. Included is marking up Rand Water’s schematic diagrams, general arrangement layout, door layouts, selection of equipment and planning the chassis layouts with wiring channels, labels, terminals etc.
B80: The final planning of cable routes, detailed cable racking layouts and design considering cable runs to minimise cross overs, mechanical strength of the racking system wherever required is included. Also included is detailed liaison with Eskom with respect to cable runs in their switchyard.
B81: The contractor shall also determine the best positions for installation of the Distribution Board, Mimic Panel and UPS, and core drilling into the Engine Room basements where required for cable access.
A82: 2.2 | B82: Documentation
B85: The contractor shall provide as built drawings in latest version Autocad format of all distribution boards inclusive of dimensioned general arrangements, schematic diagrams, labels etc.
B86: Detailed as installed cable schedules and earthing conductors with installed lengths of cable shall be provided in electronic and hard copy format.
B87: Marked up dimensioned cable route drawings shall be provided for updating by Rand Water.
B88: Certification inclusive of test certificates, FAT certificates, assembly assessors certificate and Certificates of Compliance shall be provided in hard copy and electronic formats.
A89: 2.3 | B89: Supply and delivery of cables
B90: In determining the length of cable installed the gland to gland distance will be measured plus additional cable per end as determined below:
B91: a) End at 400 V and 11kV switchgear - 1,5 metres
B92: b) End at any other device - 0,5 metre
B93: Separate items will be scheduled for each type, size and number of cores of cables supplied and/or installed. The rates shall apply for installation of cables at all levels. Should cable be required to be installed at levels above two metres completed working platforms (and ground level) an additional rate will be applied reflecting actual costs for scaffolding, scaffold planks, boarding, labour to erect scaffolding etc.
A95: 2.4 | B95: Cables - supply and install
B96: a) Rates shall include full compensation for the procurement, delivery to site, unloading and on site storage, protection, handling, craneage, measurement of cable runs, cutting, installing the cable in accordance with the specification (including cable jacks and rollers) laying in cable ducts or on cable racking complete with identification tagging and labelling. Rates shall also include the supply and fixing of all clamps, trefoil clamps for single core cables, cable straps or cable ties etc. The testing of Medium Voltage cables will be by the Overvoltage Low Frequency Method and by On Line Partial Discharge three months after commissioning. The testing of all 600/1 000 V PVC, PVC, SWA, PVC cable with 1 000 V DC megger shall also be included in the rates. Instrumentation signal cables shall not be tested with a megger.
B98: b) All power and control cables supplied shall comply with SABS 1507 and 1339 Type A and B where applicable and shall bear the SABS mark. Cables shall be 6.35/11 kV XLPE and 600/1 000V PVC, PVC, SWA, PVC with copper conductors and flame retardant, outer sheaths.
A99: 2.5 | B99: Cables - installation only
B100: The rates for the installation only of cables shall include full compensation for the unloading and on site storage, protection, handling, cranage, measurement of cable runs, cutting, installing the cable in accordance with the specification (including cable jacks and rollers) fixing the cable to cable racking with cable ties, complete with identification tagging and labelling.
A101: 2.6 | B101: Cable termination
B102: A termination rate is defined as one cable end. Separate rates shall be supplied for each type of cable end. Rates shall include full compensation for the supply of all cable glands, tapes, shrouds, termination kits, cutting, stripping, lacing/harnessing crimping, lugs and cable core numbering ferrules in accordance with the specification. The drilling of gland plates shall also be included in rates as well as the treatment of metal parts with cold galvanising paint
A103: 2.7 | B103: Cable trenches - excavation and backfill
B104: The excavation and backfilling of cable trenches shall be measured on a cubic meter basis.
B106: Rates shall include full compensation for the setting out, supervision, labour, materials, provision of all necessary equipment to complete the backfilling process including the cleaning out of trenches, supply and laying sieved stone free soil or sand, supply, backfilling and compaction of trenches in accordance with the specifications.
B108: The rates shall include for the barricading of open cable trenches with orange netting type barricade (danger tape not acceptable).
B110: The contractor shall also protect open cable trenches against subsidence and filling with storm water.
B112: The contractor shall repair the tar roads after installation of sleeves as per the Rand Water specification.
B114: The contractor shall also measure on a per meter basis for the supply and installation of concrete paving slabs and danger tape in all cable trenches.
B116: The excavation of trenches is defined in the terms of the specification as Class 1 soft pickable material or Class 2 Hard Rock. Unless otherwise stated all excavation shall be carried out by hand.
B118: Excavations will be classified in two categories only.
B120: a) Class 1: Pickable, Earth, hand pickable and soft rock. All ground types including hand pickable rock which do not have to be removed by pneumatic drill, blasting, wedging or other mechanical means. The material may contain significant proportions of boulders and rock which can be removed manually.
B122: b) Class 2: Hard Rock, All ground types which can only be broken by pneumatic drill, wedging or other mechanical means.
B124: Excavations are measured in the Bills as Class 1 (Pickable) and Class 2 (Hard Rock). No excavations shall be deemed to be Hard Rock unless certified by the Engineer. The Engineer shall be called to site by the Contractor to inspect and certify occurrence of Hard Rock.
B126: Cable markers will be measured separately and measured by number. Rates for cable markers shall include full compensation of the manufacture, delivery to site, handling, storage and installation on completion of cable trenching.
A128: 2.8 | B128: Cable racking - supply and install
B131: Cable racking will be measured by length as installed between fittings which will be measured by number. Separate items are scheduled for each type and size of cable rack, cable rack fittings such as 90 degree bends, tees, elbows, reducers etc for each type and size of rack.
B133: Rates shall include full compensation for supply, delivery, storage, installation, cutting, application of corrosion protection, splices, nuts and bolts, drilling, support brackets including spring nuts and bolts, steelwork, tools and hilti/rawl bolts necessary to complete the installation.
B135: Where cable racks are installed in the horizontal plane, racks shall be supported at a minimum of 1,2 metre intervals. Where cable racks are installed in the vertical plane, racking shall be supported at a minimum of 1, 5 metre intervals. The support brackets, unistrut supports, painting and treatment of steelwork are inclusive in the cable racking and rates are to be calculated on this basis.
B137: The earthing of cable racks shall be measured as a separate item.
A138: 2.9 | B138: Cable joints - supply and install
B139: Cable joints will be measured by number. Separate items will be scheduled for each type of kit and cable to be joined.
B141: Rates shall cover full compensation for the jointing kits, all labour including specialist labour as required, ferrules, crimping, tape, materials, tools and necessary protection covers for outdoors whilst jointing.
A143: 2.1 | B143: Earthing and Suppression - supply and install
B144: The Contractor shall connect each plant item e.g. 11kV switchboard and distribution board, etc to the applicable station earth bar. No allowance will be made for slack, at joints or connections to equipment etc. Earthing will be measured from lug to lug and separate items will be scheduled for copper coated steel wire or insulated earth wire for each size of conductor run with individual circuits. Rates shall include full compensation for installing the earthing including supply, delivery, measuring of runs, installing in terms of the specification and strapping and supporting as necessary.
A146: 2.11 | B146: Miscellaneous equipment - supply and installation
B147: The supply and installation of miscellaneous items such as statutory labels, equipment labels and any other piece of equipment not covered in previous clauses will be measured by number where possible, alternatively by a sum amount.
B149: Rates shall include full compensation for the supply, delivery to site, storage, transport, labour handling, brackets, bolts, corrosive protection and fixings.
A151: 2.12 | B151: Testing and Commissioning
B152: Separate items will be scheduled for the testing and commissioning of MV and LV switchgear, UPS, Mimic Panel and all power cables. Test equipment to be supplied for commissioning shall include but be limited to the following and shall be available on site at all times:
B154: Two off portable electronic instruments (Fluke or approved equivalent)
B155: Two off clip on tong testers (Robin mod 2006F, Fluke or approved equivalent)
B156: 500 V / 1 000 V megger
A158: 3 | B158: Architecture Preamble
B160: Refer to Standard System of Measuring Building Work 7th Ed: ISBN: 978-0-86886-837-0; The Asscociation of South African Quantity Surveyors
A162: 4 | B162: Civil and Pipeline Preamble
A164: 4.1 | B164: All tenderers are to ensure that they familiarise themselves with the variations and additions to SANS 1200 which are provided as part of the contract documentation.
A166: 4.2 | B166: The Tenderer shall state separately against each item the rate per metre of pipe that shall be deemed to include the full inclusive cost of providing the material and of carrying out the work required to manufacture the steel pipe shell, provide the coatings and for the transport to the route of the pipelines, all in accordance with Sub- Clause 7.1 of the Conditions of Contract Fidic Redbook. The rate shall include all conditions, liabilities, general risks and obligations set forth or implied in the Contract Documents. The preamble hereafter headed Methods of Measurement and Payment regarding the scope of the prices and rates shall be taken as amplifying but not limiting Sub-Clause 7.1 of the Conditions of Contract Fidic Redbook.

Sheet Schedule 1 OHS
A2: Item No. | B2: Description | C2: Unit | D2: Qty (A) | E2: Rate (B) | F2: Amount
A4: 1 | B4: SECTION OHS: OCCUPATIONAL HEALTH AND SAFETY
A6: 1.1 | B6: Preparation of the Contractor's site specific Health and Safety Plan | C6: Sum | D6: 1 | F6: =E6*D6 -> 0
A8: 1.2 | B8: Principal Contractor's time related obligations in respect of the Occupational Health and Safety Act 85 of 1993 and all applicable regulations | C8: Sum | D8: 1 | F8: =E8*D8 -> 0
A10: 1.3 | B10: Provision of Personal Protective Equipment (PPE) | C10: Sum | D10: 1 | F10: =E10*D10 -> 0
A13: 1.4 | B13: Cost of medical certificates and medical surveillance
A15: 1.4.1 | B15: (a) Initial (baseline) medical examinations | C15: Sum | D15: 1 | F15: =E15*D15 -> 0
A18: 1.4.2 | B18: (d) Exit examinations | C18: Sum | D18: 1 | F18: =E18*D18 -> 0
A20: 1.5 | B20: Induction training | C20: Sum | D20: 1 | F20: =E20*D20 -> 0
A22: 1.6 | B22: Provision of First Aid Boxes to GSR requirements and other emergency safety equipment such as fire extinguishers. | C22: Sum | D22: 1 | F22: =E22*D22 -> 0
A24: 1.7 | B24: Transportation of Workers | C24: Sum | D24: 1 | F24: =E24*D24 -> 0
A27: 1.8 | B27: Barricading | C27: Sum | D27: 1 | F27: =E27*D27 -> 0
A29: 1.90 | B29: Safety notices and signs | C29: Sum | D29: 1 | F29: =E29*D29 -> 0
B31: SECTION 1 CARRIED FORWARD TO SUMMARY | G31: =SUM(G30:G30) -> 0.00

Sheet Schedule 2 P n G's General
A2: Contract No:RW | C2: Description: A14 and A19 Carriage Water Tie-in for the new Chlorine Plant at Vereeniging Pumping Station | G2: Schedule 2 : P&G Time Related | J2: No Rates or with rates | M2: 0
G3: =+'COVER PAGE'!D15 -> 2023-10-01
A6: Item | B6: Payment | C6: Description | D6: Unit | E6: Qty | F6: Rate | G6: Amount
A7: No. | B7: Refers
A9: 2 | B9: SABS 1200AA | C9: SECTION A: PRELIMINARY & GENERAL - GENERAL (Small Works)
A12: 2.1 | C12: SCHEDULED FIXED-CHARGE AND VALUE-RELATED ITEMS
A15: 2.1.1 | C15: Guided Wave Ultrasonic Survey to determine the residual pipe wall thickness and condition of the pipe at the tie-in connections. | D15: Sum | E15: 1
A17: 2.1.2 | C17: Contractual Requirements (items to be broken down and qualified by Contractor during pricing of document) | D17: Sum | E17: 1
A18: 2.1.3 | C18: Provision of Facilities on Site
A20: 2.1.3.1 | C20: a) Facilities required by the Engineer | D20: Sum | E20: 1
A21: 2.1.3.2 | C21: b) Facilities required by the Contractor | D21: Sum | E21: 1
A23: 2.1.4 | C23: General Responsibilities and other fixed-charge obligations | D23: Sum | E23: 1
A25: 2.1.5 | C25: Removal of site establishment | D25: Sum | E25: 1
A27: 2.2 | C27: SCHEDULED TIME-RELATED ITEMS
A29: 2.2.1 | C29: Contractual Requirements (items to be broken down and qualified by Contractor during pricing of document) | D29: Sum | E29: 1
A31: 2.2.2 | C31: Operation and Maintenance of Facilities on Site
A33: 2.2.2.1 | C33: a) Facilities required by the Engineer | D33: Sum | E33: 1
A34: 2.2.2.2 | C34: b) Facilities required by the Contractor | D34: Sum | E34: 1
A36: 2.2.3 | C36: General Responsibilities and other time-related obligations (items to be broken down and qualified by Contractor during pricing of document) | D36: Sum | E36: 1
C39: SECTION 2 CARRIED FORWARD TO SUMMARY | G39: =SUM(G38:G38) -> 0.00

Sheet Schedule 3 Valve Chambers
A2: Contract No.: RW | C2: Description: A14 and A19 Carriage Water Tie-in for the new Chlorine Plant at Vereeniging Pumping Station | G2: Schedule 3: Valve Chambers
A4: ITEM NO | B4: PAYMENT REFERS | C4: SHORT DESCRIPTION | D4: UNIT | E4: QUANTITY | F4: RATE | G4: AMOUNT
A6: 3.1 | B6: SANS 1200 C | C6: SECTION C: SITE CLEARANCE
A8: 3.1.1 | C8: Clear and grub site (and remove any obstruction that may occur. Only areas indicated in writing by the Engineer)
A10: 3.1.1.1 | C10: i) A14 tie-in chamber | D10: m2 | E10: 19
A11: 3.1.1.2 | C11: ii) A19 tie-in chamber | D11: m2 | E11: 19
C43: Carried Forward
C44: Brought Forward
A46: 3.2 | B46: SABS 1200DA | C46: SECTION DA: EARTHWORKS
A48: 3.2.1 | C48: Excavation
A49: 3.2.1.1 | C49: a) Remove topsoil to nominal depth 150mm, stockpile and maintain
A51: 3.2.1.1.1 | C51: i) A14 tie-in chamber | D51: m2 | E51: =0.15*E10 -> 3
A52: 3.2.1.1.2 | C52: ii) A19 tie-in chamber | D52: m2 | E52: =0.15*E11 -> 3
A54: 3.2.1.2 | C54: b) Excavate in all materials and use for embankment or backfill or dispose, as ordered | D54: m3
A56: 3.2.1.2.1 | C56: i) A14 tie-in chamber | D56: m3 | E56: =32*1.2 -> 38
A57: 3.2.1.2.2 | C57: ii) A19 tie-in chamber | D57: m3 | E57: =46*1.2 -> 55
A59: 3.2.2 | C59: Importing of material from commercial sources or from borrow pits
A60: 3.2.2.1 | C60: a) Importing of backfill G7 Material compacted in layers not exceeding 150mm in thickness compacted to 93% MOD AASHTO density at -1% to +2% OMC
A62: 3.2.2.1.1 | C62: i) A14 tie-in chamber | D62: m3 | E62: =10*1.2 -> 12
A63: 3.2.2.1.2 | C63: ii) A19 tie-in chamber | D63: m3 | E63: =10*1.2 -> 12
A65: 3.2.2.2 | C65: b) Suitable stage 1 fill material (refer to DRG. R027141)
A67: 3.2.2.2.1 | C67: i) A19 tie-in chamber | D67: m3 | E67: 9.2
A69: 3.2.3 | C69: Topsoiling
A71: 3.2.3.1 | C71: i) A14 tie-in chamber | D71: m2 | E71: =+E51 -> 3
A72: 3.2.3.2 | C72: ii) A19 tie-in chamber | D72: m2 | E72: =+E52 -> 3
A75: 3.2.4 | C75: Shoring of deep excavations
A77: 3.2.4.1 | C77: i) A14 tie-in chamber | D77: Sum | E77: 1
A78: 3.2.4.2 | C78: ii) A19 tie-in chamber | D78: Sum | E78: 1
F81: R
C82: Carried Forward
C83: Brought Forward | F83: R
A86: 3.3 | B86: SABS 1200GA | C86: SECTION GA: CONCRETE (SMALL WORKS)
A88: 3.3.1 | C88: Scheduled Formwork Items
A89: 3.3.1.1 | C89: Narrow widths
A90: 3.3.1.1.1 | C90: a) Sides of base slab (250mm high)
A93: 3.3.1.1.1.1 | C93: i) A14 tie-in chamber | D93: m | E93: 7.3
A94: 3.3.1.1.1.2 | C94: ii) A19 tie-in chamber | D94: m | E94: 7.3
A95: 3.3.1.1.1.3 | C95: iii) Plinth at A19 | D95: m | E95: 4
A97: 3.3.1.2 | C97: Box out Holes / Form Voids
A98: 3.3.1.2.1 | C98: a) Box out hole for 500mm x 500mm x 150mm (deep) sump
A100: 3.3.1.2.1.1 | C100: i) A14 tie-in chamber | D100: No. | E100: 1
A101: 3.3.1.2.1.2 | C101: ii) A19 tie-in chamber | D101: No. | E101: 1
A103: 3.3.2 | C103: Scheduled Concrete Items
A104: 3.3.2.1 | C104: High Tensile Welded Mesh (Mesh Ref. 395)
A106: 3.3.2.1.1 | C106: i) A14 tie-in chamber | D106: m2 | E106: 15
A107: 3.3.2.1.2 | C107: ii) A19 tie-in chamber | D107: m2 | E107: 15
A108: 3.3.2.1.3 | C108: iii) Plinth at A19 | D108: m2 | E108: 2
A111: 3.3.3 | C111: Scheduled Concrete Items
A112: 3.3.3.1 | C112: Blinding Layer in ….. Concrete
C113: (50mm Class 15/19MPa Blinding Layer)
A115: 2.3.3.1.1 | C115: i) A14 tie-in chamber | D115: m2 | E115: 8
A116: 2.3.3.1.2 | C116: ii) A19 tie-in chamber | D116: m2 | E116: 8
A118: 3.3.3.2 | C118: Strength Concrete
A119: 2.3.3.2.1 | C119: a) Grade 35MPa/19mm
A121: 2.3.3.2.1.1 | C121: i) A14 tie-in chamber | D121: m3 | E121: 2
A122: 2.3.3.2.1.2 | C122: ii) A19 tie-in chamber | D122: m3 | E122: 2
A123: 2.3.3.2.1.3 | C123: iii) Plinth at A19 | D123: m2 | E123: 2
A125: 2.3.3.2.2 | C125: b) Grade 15MPa/19mm
A127: 2.3.3.2.2.1 | C127: i) A14 tie-in chamber | D127: m3 | E127: 9
A128: 2.3.3.2.2.2 | C128: ii) A19 tie-in chamber | D128: m3 | E128: 3
A130: 3.3.3.3 | C130: Unformed surface finishes
C131: Wood-floated finish to floor slab
A133: 3.3.3.3.1 | C133: i) A14 tie-in chamber | D133: m2 | E133: 8
A134: 3.3.3.3.2 | C134: ii) A19 tie-in chamber | D134: m2 | E134: 8
A135: 3.3.3.3.3 | C135: iii) Plinth at A19 | D135: m2 | E135: 1
A137: 3.3.4 | C137: Miscellaneous
A138: 3.3.4.1 | C138: Cast in PVC sleeves:
A139: 2.3.4.1.1 | C139: a) 110mm diameter x 150mm long including vermin proof mesh
A141: 2.3.4.1.1.1 | C141: i) A14 tie-in chamber | D141: No. | E141: 4
A142: 2.3.4.1.1.2 | C142: ii) A19 tie-in chamber | D142: No. | E142: 4
A144: 3.3.4.2 | C144: Cast in standard Rand Water manhole frame and cover (Contractor to collect from Rand Water Central Deport)
A146: 3.3.4.2.1 | C146: i) A14 tie-in chamber | D146: No. | E146: 1
A147: 3.3.4.2.2 | C147: ii) A19 tie-in chamber | D147: No. | E147: 1
A149: 3.3.4.3 | C149: Supply and cast in standard Rand Water frame and sump cover (as per DGR No. A8879)
A151: 3.3.4.3.1 | C151: i) A14 tie-in chamber | D151: No. | E151: 1
A152: 3.3.4.3.2 | C152: ii) A19 tie-in chamber | D152: No. | E152: 1
A155: 3.3.4.4 | C155: Atactic polypropylene plastic modified asphalt torch-on waterproofing membrane, to be installed by the manufacture (1m width)
A157: 3.3.4.4.1 | C157: i) A14 tie-in chamber | D157: m | E157: 28
A158: 3.3.4.4.2 | C158: ii) A19 tie-in chamber | D158: m | E158: 28
C163: Carried Forward
C164: Brought Forward
A166: 3.4 | B166: SABS 1200GE | C166: SECTION GE: PRECAST CONCRETE (STRUCTURAL)
A168: 3.4.1 | C168: SCHEDULED ITEMS
A170: 3.4.1.1 | C170: Provide Structural Precast Units
A172: 3.4.4.1.1 | C172: a) 2000x2000x500x150mm thick precast square units/rings
A174: 3.4.4.1.1.1 | C174: i) A14 tie-in chamber | D174: No. | E174: 5
A175: 3.4.4.1.1.2 | C175: ii) A19 tie-in chamber | D175: No. | E175: 5
A177: 3.4.4.1.2 | C177: b) 2300x2300x150mm thick precast square roof slab
A179: 3.4.4.1.2.1 | C179: i) A14 tie-in chamber | D179: No. | E179: 1
A180: 3.4.4.1.2.2 | C180: ii) A19 tie-in chamber | D180: No. | E180: 1
A184: 3.4.1.2 | C184: Erection of Structural Precast Units
A186: 3.4.1.2.1 | C186: a) 2000x2000x500x150mm thick precast square units/rings
A188: 3.4.1.2.1.1 | C188: i) A14 tie-in chamber | D188: No. | E188: 5
A189: 3.4.1.2.1.2 | C189: ii) A19 tie-in chamber | D189: No. | E189: 5
A191: 3.4.1.2.2 | C191: b) 2300x2300x150mm thick precast square roof slab
A193: 3.4.1.2.2.1 | C193: i) A14 tie-in chamber | D193: No. | E193: 1
A194: 3.4.1.2.2.2 | C194: ii) A19 tie-in chamber | D194: No. | E194: 1
C204: Carried Forward
C205: Brought Forward
A207: 3.5 | B207: SABS 1200HA | C207: SECTION HA: STRUCTURAL STEELWORK (SUNDRY ITEMS)
A209: 3.5.1 | C209: Scheduled Items
A210: 3.5.1.1 | C210: Ladders complete and installed
C211: Supply and Install Standard Rand Water Catladder (as per DRG No. A7406)
C212: 2300mm high
A214: 3.5.1.1.1 | C214: i) A14 tie-in chamber | D214: No. | E214: 1
A215: 3.5.1.1.2 | C215: ii) A19 tie-in chamber | D215: No. | E215: 1
A217: 3.5.1.2 | C217: Supply and install Grab Rails as detailed on Rand Water Detail (as per DRG. No. A9858)
A219: 3.5.1.2.1 | C219: i) A14 tie-in chamber | D219: No. | E219: 1
A220: 3.5.1.2.2 | C220: ii) A19 tie-in chamber | D220: No. | E220: 1
C246: Carried Forward
C248: SECTION 3 CARRIED FORWARD TO SUMMARY | F248: R

Sheet Schedule 4 Mechanical
A2: Contract No.: RW | C2: Description: A14 and A19 Carriage Water Tie-in for the new Chlorine Plant at Vereeniging Pumping Station | G2: Schedule 4: Mechanical Works
A4: ITEM NO | B4: PAYMENT REFERS | C4: SHORT DESCRIPTION | D4: UNIT | E4: QUANTITY | F4: RATE | G4: AMOUNT
A6: 4 | C6: Supply, deliver and install Pipe Specials with lining & coating, Valves as per Rand Water Valve Specifications (including bolts, studs, nuts and washers, gaskets and loose flanges as per Rand Water Flange drawing A11791 and A9548):
A10: 4.1 | C10: A14 PIPELINE – Dwg RA 61224
A12: 4.1.1 | C12: 200mm NB x OD = 219.1mm x ID = 206.4mm x t = 6.35mm x h= 240mm Grade X42 stub pipe flanged on one end to A11791 and A9548 | D12: No. | E12: 1
A14: 4.1.2 | C14: 200mm NB x OD = 219.1mm x ID = 206.4mm x t = 6.35mm Grade X42 90 deg bend flanged on both ends to A11791 and A9548 | D14: No. | E14: 1
A16: 4.1.3 | C16: 200mm NB x OD = 425mm x ID = 224mm x t = 8mm Grade X42 compenstaion plate | D16: No. | E16: 1
A18: 4.1.4 | C18: 200mm NB x 5 000kPa TP isolation valve complete with gearbox assembly. Valve flanges to RW drawing A11791 and A9548. | D18: No. | E18: 1
A20: 4.1.5 | C20: 200mm NB x OD = 219.1mm x ID = 206.4mm x t = 6.35mm x h= 800mm Grade X42 stub pipe flanged on one end to RW drawing A11791 and A9548 | D20: No. | E20: 1
A22: 4.1.6 | C22: 200mm NB loose Flange (5 000kPa TP) as per RW drawing A11791 and A9548 | D22: No. | E22: 4
A24: 4.1.7 | C24: Flange gaskets, bolts, nuts and washers as per RW Valve Spec RW/0310/AS0460 | D24: Sum | E24: 1
A26: 4.1.8 | C26: Insulating Flange Kit complete with spark gaps, cable and supporting bracket as per RW drawing A9548 | D26: No. | E26: 2
A29: 4.2 | C29: A19 PIPELINE – Dwg RA 61223
A31: 4.2.1 | C31: 200mm NB x OD = 219.1mm x ID = 206.4mm x t = 6.35mm x h= 240mm Grade X42 stub pipe flanged on one end to A11791 and A9548 | D31: No. | E31: 1
A33: 4.2.2 | C33: 200mm NB x OD = 219.1mm x ID = 206.4mm x t = 6.35mm Grade X42 90 deg bend flanged on both ends to A11791 and A9548 | D33: No. | E33: 1
A35: 4.2.3 | C35: 200mm NB x OD = 425mm x ID = 224mm x t = 8mm Grade X42 compenstaion plate | D35: No. | E35: 1
A37: 4.2.4 | C37: 200mm NB x 5 000kPa TP isolation valve complete with gearbox assembly. Valve flanges to RW drawing A11791 and A9548. | D37: No. | E37: 1
A39: 4.2.5 | C39: 200mm NB x OD = 219.1mm x ID = 206.4mm x t = 6.35mm x h= 800mm Grade X42 stub pipe flanged on one end to RW drawing A11791 and A9548 | D39: No. | E39: 1
A41: 4.2.6 | C41: 200mm NB loose Flange (5 000kPa TP) as per RW drawing A11791 and A9548 | D41: No. | E41: 4
A43: 4.2.7 | C43: Flange gaskets, bolts, nuts and washers as per RW Valve Spec RW/0310/AS0460 | D43: Sum | E43: 1
A45: 4.2.8 | C45: Insulating Flange Kit complete with spark gaps, cable and supporting bracket as per RW drawing A9548 | D45: No. | E45: 2
C70: SECTION 4 CARRIED FORWARD TO SUMMARY | F70: R

Sheet Summary All
C1: A14 & A19 Carriage Water Tie-in
A2: Contract No.: | B2: RW
A3: Description: | B3: A14 and A19 Carriage Water Tie-in for the new Chlorine Plant at Vereeniging Pumping Station | C3: =+'COVER PAGE'!D15 -> 2023-10-01
B7: SUMMARY OF PRICING SCHEDULES
A9: Schedule | B9: Description | C9: Amount
A11: Schedule 1 | B11: Occupational Health and Safety
A13: Schedule 2 | B13: Preliminary and General (Fixed and Time Related Items)
A15: Schedule 3 | B15: Valve Chamber
A17: Schedule 4 | B17: Mechanical Works
A29: SUBTOTAL E ……………………………………..……………………………………………
A32: VALUE ADDED TAX
A33: Add 15% of Subtotal ………..…….……………………..………...……..………………
A34: (Provisional sum based on current rate of VAT)
A41: SIGNED ON BEHALF OF TENDERER: ……………………………………………..…………………………………………….

Sheet G CALCS (hidden)
A1: ITEM NO | B1: PAYMENT REFERS | C1: SHORT DESCRIPTION | D1: UNIT | E1: QUANTITY
B3: SABS | C3: SECTION G: CONCRETE (STRUCTURAL)
B4: 1200 GA
A5: GA1 | B5: 8.2 | C5: FORMWORK
B6: 8.2.2 | C6: Especially Smooth and buffed vertical plane to :
A7: GA1.1 | C7: Inside of chamber walls | D7: m² | E7: =2*((H26-H34)*(H27-H34*2)+(H26-H34)*(H28-H34*2))+2*((I26-H34)*(I27-H34*2)+(I26-I34)*(I28-I34*2))+2*((J26-J34)*(J27-J34*2)+(J26-J34)*(J28-J34*2)) -> 19
A8: GA1.2 | C8: Inside of manhole void in chamber cover | D8: m² | E8: =((H32*H29+H33*H29)*2)*3 -> 1
A9: GA1.3 | C9: Outside of chamber cover | D9: m² | E9: =(H30*H29+H31*H29)*2+(I30*I29+I31*I29)*2+(J30*J29+J31*J29)*2 -> 2
B11: 8.2.1 | C11: Rough below ground
C12: Vertical plane to:
A13: GA1.4 | C13: Outside of chamber walls | D13: m² | E13: =((H26-H34)*H27+(H26-H34)*H28)*2+((I26-I34)*I27+(I26-I34)*I28)*2+((J26-J34)*J27+(J26-J34)*J28)*2 -> 23
A14: GA1.5 | C14: Outside of chamber floor | D14: m² | E14: =(H27*H34+H28*H34)*2+(I27*I34+I28*I34)*2+(J27*J34+J28*J34)*2 -> 2
B16: 8.2.2 | C16: Especially Smooth and buffed horizontal plane to :
A17: GA1.1 | C17: Soffit of chamber cover | D17: m² | E17: =H31*H30+I31*I30+J31*J30 -> 8
A19: GA2 | B19: 8.3 | C19: REINFORCEMENT
C20: Mild steel bars:
A21: GA2.1 | C21: Diameters 8 mm to 40 mm: Average price as indicated on schedules | D21: t | E21: =E25*0.2 -> 0.13
B23: 8.3.2 | C23: High-tensile steel bars average
C24: price:
A25: GA2.2 | C25: Diameters 8 mm to 40 mm: Average price as indicated on schedules | D25: t | E25: =E34*0.1 -> 0.66 | H25: Chamber1 | I25: Chamber2 | J25: Chamber3
G26: D1 | H26: =2.39+0.2 -> 2.59 | I26: 0 | J26: 0
A27: GA3 | B27: 8.4 | C27: CONCRETE | G27: W1 | H27: =2+0.2+0.2 -> 2.4 | I27: 0 | J27: 0
B28: 8.4.2 | C28: Blinding layer in 15 MPa/19 mm concrete: | G28: B1 | H28: =2+0.2+0.2 -> 2.4 | I28: 0 | J28: 0
A29: GA3.1 | C29: 50 mm minimum thickness | D29: m² | E29: =H27*H28+I27*I28+J27*J28 -> 6 | G29: D2 | H29: 0.15 | I29: 0 | J29: 0
G30: W2 | H30: =H27+0.25+0.25 -> 2.9 | I30: 0 | J30: 0
G31: B2 | H31: =H28+0.25+0.25 -> 2.9 | I31: 0 | J31: 0
B32: 8.4.3 | C32: Strength concrete: 25MPa/19 mm: | G32: W3 | H32: =0.5 -> 0.5 | I32: 0 | J32: 0
G33: B3 | H33: 0.6 | I33: 0 | J33: 0
A34: GA3.4 | C34: 30MPa/19mm concrete for chambers | D34: m³ | E34: =(H27*H28*H34+2*((H26-H34)*(H28-H34*2)*H34)+2*((H26-H34)*H27*H34)+(H29*H30*H31-H32*H33*H29))+(I27*I28*I34+2*((I26-I34)*(I28-I34*2)*I34)+2*((I26-I34)*I27*I34)+(I29*I30*I31-I32*I33*I29))+(J27*J28*J34+2*((J26-J34)*(J28-J34*2)*J34)+2*((J26-J34)*J27*J34)+(J29*J30*J31-J32*J33*J29)) -> 7 | G34: T | H34: 0.2 | I34: 0 | J34: 0
B37: 8.4.4 | C37: Unformed surface finishings:
A38: GA3.6 | C38: Wood floated finish | D38: m² | E38: =(H27*H28+H30*H31)+(I27*I28+I30*I31)+(J27*J28+J30*J31) -> 14
A39: GA3.7 | C39: Steel floated finish | D39: m² | E39: -
A41: GA4 | C41: CONCRETE CUBE-TESTING MACHINE
A42: GA4.1 | C42: Testing of concrete cubes | D42: No | E42: =3*6 -> 18
A43: GA4.2 | C43: Supply cube-testing machine on site with recent calibration certificate and water trough | D43: Sum | E43: -
C60: TOTAL FOR SECTION GA CARRIED TO SUMMARY

Sheet Factor for rates (hidden)
A1: Factor for rates | C1: = | D1: 2

Sheet Sheet1 (hidden)
B1: Mankge-Makuwa Construction cc
B2: SUMMARY OF SCHEDULE OF QUANTITIES
B4: SECTION | C4: DESCRIPTION | I4: TOTAL
B5: SECTION A | C5: : PRELIMINARY AND GENERAL | I5: R 579,785.00
B7: SECTION C | C7: : SITE CLEARANCE | I7: R 269.00
B9: SECTION D | C9: : EARTHWORKS | I9: R 21,770.98
B11: SECTION DB | C11: : EARTHWORKS (PIPE TRENCHES) | I11: R 7,360.00
B13: SECTION GA | C13: : CONCRETE (SMALL WORKS) | I13: R 140,055.80
B15: TOTAL FOR SCHEDULE OF QUANTITIES | I15: =SUM(I5:I14) -> R 749,240.78
B17: CONTINGENCIES | I17: =+I15*0.05 -> R 37,462.04
B19: CONTRACT PRICE ADJUSTMENT | I19: FIXED
B21: SUB TOTAL | I21: =SUM(I15:I19) -> R 786,702.82
B23: ADD 14 % VAT | I23: =+I21*0.14 -> R 110,138.39
B25: TOTAL FOR TENDER | I25: =SUM(I21:I23) -> R 896,841.21
B35: SUMMARY OF SCHEDULE OF QUANTITIES
B37: SECTION | C37: DESCRIPTION | I37: TOTAL
B38: SECTION A | C38: : PRELIMINARY AND GENERAL | I38: R 893,800.00
B40: SECTION C | C40: : SITE CLEARANCE | I40: R 440,000.00
B42: SECTION D | C42: : EARTHWORKS | I42: R 3,560.00
B44: SECTION DB | C44: : EARTHWORKS (PIPE TRENCHES) | I44: R 1,200.00
B46: SECTION GA | C46: : CONCRETE (SMALL WORKS) | I46: R 50,932.00
B48: TOTAL FOR SCHEDULE OF QUANTITIES | I48: =SUM(I38:I47) -> R 1,389,492.00
B50: CONTINGENCIES | I50: =+I48*0.05 -> R 69,474.60
B52: CONTRACT PRICE ADJUSTMENT | I52: FIXED
B54: SUB TOTAL | I54: =SUM(I48:I52) -> R 1,458,966.60
B56: ADD 14 % VAT | I56: =+I54*0.14 -> R 204,255.32
B58: TOTAL FOR TENDER | I58: =SUM(I54:I56) -> R 1,663,221.92
